bitfinex/quotes_BTCUSD_20240605
["timestamp","ask_amount","ask_price","bid_price","bid_amount"]
[1717619239111,0.1595,71324.0,71323.0,0.24223062]
[1717619240964,0.1595,71324.0,71323.0,0.143205]
[1717619241188,0.1595,71324.0,71323.0,0.24223062]
[1717619245194,0.1595,71324.0,71323.0,0.143205]
[1717619245401,0.1595,71324.0,71323.0,0.24223062]
[1717619247393,0.1595,71324.0,71323.0,0.29596917]
[1717619247606,0.1595,71324.0,71323.0,0.24223062]
[1717619250349,0.1595,71324.0,71323.0,0.24317662]
[1717619256875,0.14541893,71324.0,71323.0,0.003946]
[1717619257094,0.48852393,71324.0,71323.0,0.003946]
[1717619257527,0.8268386,71324.0,71323.0,0.003946]
[1717619257740,0.5163691,71324.0,71323.0,0.000946]
[1717619257964,0.82203221,71324.0,71323.0,0.000946]
[1717619258212,0.82103221,71324.0,71323.0,0.003946]
[1717619258420,0.82987738,71324.0,71323.0,0.004946]
[1717619258603,0.82987738,71324.0,71323.0,0.001946]
[1717619258825,0.82587738,71324.0,71323.0,0.000946]
[1717619259034,0.82987738,71324.0,71323.0,0.002946]
[1717619259207,0.82987738,71324.0,71323.0,0.001946]
[1717619259628,0.82503221,71324.0,71323.0,0.001946]
[1717619259833,0.83387738,71324.0,71323.0,0.002946]
[1717619260011,0.82903221,71324.0,71323.0,0.002946]
[1717619260419,0.82903221,71324.0,71323.0,0.001946]
[1717619260964,0.82903221,71324.0,71323.0,0.002946]
[1717619261115,0.93389765,71324.0,71323.0,0.002946]
[1717619261335,0.93389765,71324.0,71323.0,0.001946]
[1717619261525,0.82903221,71324.0,71323.0,0.001946]
[1717619261760,0.82903221,71324.0,71323.0,0.002946]
[1717619262190,0.82903221,71324.0,71323.0,0.001946]
[1717619262191,0.82103221,71324.0,71323.0,0.001946]
[1717619262524,0.82503221,71324.0,71323.0,0.002946]
[1717619262716,0.92989948,71324.0,71323.0,0.002946]
[1717619263768,0.99779948,71324.0,71323.0,0.002946]
[1717619263947,0.92989948,71324.0,71323.0,0.002946]
[1717619264102,0.99779948,71324.0,71323.0,0.002946]
[1717619264313,0.99779948,71324.0,71323.0,0.001946]
[1717619264713,0.99779948,71324.0,71323.0,0.002946]
[1717619265143,0.99779948,71324.0,71323.0,0.000946]
[1717619265342,0.99379948,71324.0,71323.0,0.000946]
[1717619265519,0.99779948,71324.0,71323.0,0.002946]
[1717619265899,0.99379948,71324.0,71323.0,0.001946]
[1717619266109,0.99379948,71324.0,71323.0,0.002946]
[1717619266312,0.99779948,71324.0,71323.0,0.002946]
[1717619266739,0.89293221,71324.0,71323.0,0.002946]
[1717619268750,0.89777738,71324.0,71323.0,0.002946]
[1717619269964,0.82503221,71324.0,71323.0,0.002946]
[1717619270494,0.89293221,71324.0,71323.0,0.002946]
[1717619270725,0.92985841,71324.0,71323.0,0.002946]
[1717619271138,0.99775841,71324.0,71323.0,0.001946]
[1717619271593,0.99375841,71324.0,71323.0,0.001946]
[1717619271796,0.88893221,71324.0,71323.0,0.001946]
[1717619271973,0.89293221,71324.0,71323.0,0.001946]
[1717619272211,0.88893221,71324.0,71323.0,0.000946]
[1717619272642,0.89293221,71324.0,71323.0,0.001946]
[1717619272854,0.89777738,71324.0,71323.0,0.001946]
[1717619273274,1.00259533,71324.0,71323.0,0.001946]
[1717619273477,0.92985016,71324.0,71323.0,0.001946]
[1717619273667,0.92985016,71324.0,71323.0,0.002946]
[1717619273668,0.89293221,71324.0,71323.0,0.002946]
[1717619274250,0.99774721,71324.0,71323.0,0.001946]
[1717619274661,0.88893221,71324.0,71323.0,0.001946]
[1717619274868,0.89777738,71324.0,71323.0,0.002946]
[1717619275072,0.89777738,71324.0,71323.0,0.001946]
[1717619275273,0.89777738,71324.0,71323.0,0.000946]
[1717619275500,0.89777738,71324.0,71323.0,0.001946]
[1717619275712,0.90177738,71324.0,71323.0,0.002946]
[1717619277605,0.90178182,71324.0,71323.0,0.002946]
[1717619282969,1.18219182,71324.0,71323.0,0.002946]
[1717619283442,0.14506417,71317.0,71316.0,0.000946]
[1717619283590,0.69089582,71317.0,71316.0,0.000946]
[1717619284625,0.68605065,71317.0,71316.0,0.000946]
[1717619285420,0.69105065,71317.0,71316.0,0.001946]
[1717619286906,0.69589582,71317.0,71316.0,0.002946]
[1717619287355,0.69105065,71317.0,71316.0,0.002946]
[1717619287553,0.77488035,71317.0,71316.0,0.002946]
[1717619288393,0.69105065,71317.0,71316.0,0.002946]
[1717619289644,0.69589582,71317.0,71316.0,0.002946]
[1717619289854,1.28823397,71317.0,71316.0,0.002946]
[1717619290029,1.18343382,71317.0,71316.0,0.002946]
[1717619290414,1.47936318,71317.0,71316.0,0.002946]
[1717619290674,0.42650455,71312.0,71311.0,0.000946]
[1717619290822,1.5627932,71312.0,71311.0,0.000946]
[1717619292691,1.5837932,71312.0,71311.0,0.002946]
[1717619293496,1.5158932,71312.0,71311.0,0.002946]
[1717619293703,1.5837932,71312.0,71311.0,0.002946]
[1717619293949,1.72891107,71312.0,71311.0,0.002946]
[1717619294526,1.41839835,71312.0,71311.0,0.002946]
[1717619294728,1.72899669,71312.0,71311.0,0.002946]
[1717619297593,1.85470869,71312.0,71311.0,0.002946]
[1717619297742,1.64169082,71312.0,71311.0,0.002946]
[1717619297962,1.30933382,71312.0,71311.0,0.002946]
[1717619298155,1.53197882,71312.0,71311.0,0.002946]
[1717619298336,0.820721,71306.0,71305.0,0.0772]
[1717619298685,0.77555893,71306.0,71305.0,0.0772]
[1717619298978,1.36662468,71306.0,71305.0,0.0772]
[1717619299208,1.45041902,71306.0,71305.0,0.0772]
[1717619299447,0.96179802,71306.0,71305.0,0.10014]
[1717619299659,0.14441893,71306.0,71305.0,0.42455483]
[1717619299894,0.22031893,71306.0,71305.0,0.2304]
[1717619300884,0.23431893,71306.0,71305.0,0.2314]
[1717619301294,0.37455893,71306.0,71305.0,0.2314]
[1717619303751,0.23431893,71306.0,71305.0,0.2314]
[1717619304340,0.23431893,71306.0,71305.0,0.002]
[1717619304341,0.39755893,71306.0,71305.0,0.002]
[1717619304746,0.79195439,71306.0,71305.0,0.002]
[1717619306402,0.72405439,71306.0,71305.0,0.002]
[1717619306605,0.79195439,71306.0,71305.0,0.002]
[1717619307377,0.39755893,71306.0,71305.0,0.002]
[1717619308012,0.25731893,71306.0,71305.0,0.02661]
[1717619308225,0.16641893,71306.0,71305.0,0.26741]
[1717619309853,0.16641893,71306.0,71305.0,0.2428]
[1717619310275,0.23431893,71306.0,71305.0,0.2428]
[1717619310663,0.27624335,71306.0,71305.0,0.2428]
[1717619311082,0.23431893,71306.0,71305.0,0.2428]
[1717619313322,0.29720556,71306.0,71305.0,0.2428]
[1717619313557,0.23431893,71306.0,71305.0,0.2428]
[1717619313805,0.29722808,71306.0,71305.0,0.2428]
[1717619314247,0.54488985,71306.0,71305.0,0.2428]
[1717619314458,0.6287387,71306.0,71305.0,0.079]
[1717619314667,0.7689787,71306.0,71305.0,0.079]
[1717619314868,0.76901562,71306.0,71305.0,0.079]
[1717619315744,0.7081315,71306.0,71305.0,0.002]
[1717619316156,0.71297667,71306.0,71305.0,0.002]
[1717619318496,0.7081315,71306.0,71305.0,0.002]
[1717619318698,0.71297667,71306.0,71305.0,0.002]
[1717619321624,0.7081315,71306.0,71305.0,0.002]
[1717619322189,0.71297667,71306.0,71305.0,0.002]
[1717619323029,0.7081315,71306.0,71305.0,0.002]
[1717619323253,0.7081315,71306.0,71305.0,0.0847]
[1717619324575,0.6402315,71306.0,71305.0,0.0847]
[1717619324753,0.7081315,71306.0,71305.0,0.0847]
[1717619326398,0.6402315,71306.0,71305.0,0.10962]
[1717619326713,0.4999915,71306.0,71305.0,0.2394]
[1717619327170,0.25235595,71306.0,71305.0,0.2394]
[1717619327377,0.22935595,71306.0,71305.0,0.2394]
[1717619327752,0.22935595,71306.0,71305.0,0.28387236]
[1717619328338,0.16641893,71306.0,71305.0,0.47902719]
[1717619329163,0.16641893,71306.0,71305.0,0.28387236]
[1717619329164,0.20838622,71306.0,71305.0,0.28387236]
[1717619329578,0.2083857,71306.0,71305.0,0.28387236]
[1717619329753,0.2083857,71306.0,71305.0,0.47902719]
[1717619329954,0.2083857,71306.0,71305.0,0.28387236]
[1717619330618,0.2083857,71306.0,71305.0,0.47902719]
[1717619330835,0.2083857,71306.0,71305.0,0.28387236]
[1717619331461,0.2083857,71306.0,71305.0,0.2394]
[1717619332735,0.22936908,71306.0,71305.0,0.2394]
[1717619333160,0.22936908,71306.0,71305.0,0.43455483]
[1717619333995,0.16641893,71306.0,71305.0,0.43455483]
[1717619334204,0.22937889,71306.0,71305.0,0.43455483]
[1717619335205,0.22937889,71306.0,71305.0,0.2394]
[1717619337203,0.16641893,71306.0,71305.0,0.2394]
[1717619340982,0.16641893,71306.0,71305.0,0.48902719]
[1717619342111,0.022,71306.0,71305.0,0.48902719]
[1717619342323,0.15285996,71306.0,71305.0,0.48902719]
[1717619342535,0.15285996,71306.0,71305.0,0.49919596]
[1717619342741,0.0899,71306.0,71305.0,0.48902719]
[1717619343143,0.0899,71306.0,71305.0,0.48802719]
[1717619343144,0.07095996,71306.0,71305.0,0.48802719]
[1717619343351,0.13885996,71306.0,71305.0,0.48802719]
[1717619343551,0.07495996,71306.0,71305.0,0.48802719]
[1717619343756,0.11387833,71306.0,71305.0,0.48702719]
[1717619344215,0.12387833,71306.0,71305.0,0.48802719]
[1717619344390,0.0679,71306.0,71305.0,0.48702719]
[1717619344876,0.0729,71306.0,71305.0,0.48702719]
[1717619345473,0.0719,71306.0,71305.0,0.48702719]
[1717619346061,0.0679,71306.0,71305.0,0.48702719]
[1717619346239,0.0779,71306.0,71305.0,0.48802719]
[1717619346614,0.0779,71306.0,71305.0,0.2384]
[1717619347049,0.0839,71306.0,71305.0,0.2384]
[1717619347266,0.14685996,71306.0,71305.0,0.2384]
[1717619349150,0.29127889,71306.0,71305.0,0.0814]
[1717619349581,0.29127889,71306.0,71305.0,0.082346]
[1717619350551,0.29128844,71306.0,71305.0,0.082346]
[1717619353557,0.29128844,71306.0,71305.0,0.001946]
[1717619353759,0.43152844,71306.0,71305.0,0.001946]
[1717619354399,0.43152844,71306.0,71305.0,0.0264506]
[1717619354605,0.43152844,71306.0,71305.0,0.001946]
[1717619356542,0.67910882,71306.0,71305.0,0.001946]
[1717619358103,0.91220882,71306.0,71305.0,0.001946]
[1717619360838,0.91705399,71306.0,71305.0,0.001946]
[1717619361039,1.04299301,71306.0,71305.0,0.001946]
[1717619361976,1.71587401,71306.0,71305.0,0.001946]
[1717619362186,1.71587401,71306.0,71299.0,0.000946]
[1717619362187,0.14509717,71300.0,71299.0,0.000946]
[1717619362392,0.89666599,71300.0,71299.0,0.000946]
[1717619362849,1.17716999,71300.0,71299.0,0.000946]
[1717619363105,1.45864837,71300.0,71299.0,0.000946]
[1717619363329,1.45864837,71300.0,71281.0,0.43336945]
[1717619363330,0.42564317,71293.0,71281.0,0.43336945]
[1717619363543,1.17451096,71293.0,71281.0,0.43336945]
[1717619363719,1.17451096,71293.0,71279.0,0.2358]
[1717619363720,1.10661096,71293.0,71279.0,0.2358]
[1717619363972,0.8638621,71293.0,71279.0,0.2358]
[1717619364195,1.17451997,71293.0,71279.0,0.0753]
[1717619364660,1.18851997,71293.0,71279.0,0.0753]
[1717619365321,1.31444965,71293.0,71279.0,0.0753]
[1717619365751,1.31438886,71293.0,71279.0,0.0753]
[1717619366184,1.20253471,71293.0,71292.0,0.001946]
[1717619367067,1.48306671,71293.0,71292.0,0.001946]
[1717619375117,1.50877031,71293.0,71292.0,0.001946]
[1717619376983,1.50877031,71293.0,71279.0,0.0753]
[1717619376984,0.140291,71280.0,71279.0,0.0753]
[1717619377168,0.35260993,71280.0,71279.0,0.0753]
[1717619378402,0.35660993,71280.0,71279.0,0.2264]
[1717619382691,0.35660993,71280.0,71279.0,0.21570866]
[1717619383847,0.35660993,71280.0,71279.0,0.21665466]
[1717619384065,0.66019293,71280.0,71279.0,0.000946]
[1717619384295,0.7276381,71280.0,71279.0,0.000946]
[1717619384523,1.2623211,71280.0,71279.0,0.000946]
[1717619384757,1.32205979,71280.0,71279.0,0.000946]
[1717619384961,1.65371501,71280.0,71279.0,0.000946]
[1717619385179,1.66771501,71280.0,71279.0,0.000946]
[1717619385944,1.68171501,71280.0,71279.0,0.001946]
[1717619386571,1.58402926,71280.0,71279.0,0.000946]
[1717619386767,1.57002926,71280.0,71279.0,0.000946]
[1717619386999,1.51612926,71280.0,71279.0,0.001946]
[1717619387195,1.28729548,71280.0,71279.0,0.001946]
[1717619387406,1.29034137,71280.0,71279.0,0.001946]
[1717619387620,1.60108168,71280.0,71279.0,0.001946]
[1717619387825,1.61508168,71280.0,71279.0,0.001946]
[1717619388237,1.30434137,71280.0,71279.0,0.001946]
[1717619390478,1.36706336,71280.0,71279.0,0.001946]
[1717619390683,1.30434137,71280.0,71279.0,0.001946]
[1717619390888,1.36706298,71280.0,71279.0,0.001946]
[1717619392036,1.36706298,71280.0,71279.0,0.236808]
[1717619392037,0.79703481,71280.0,71279.0,0.236808]
[1717619392260,0.7343132,71280.0,71279.0,0.2604888]
[1717619392435,0.8022132,71280.0,71279.0,0.2604888]
[1717619392863,0.8022132,71280.0,71279.0,0.236808]
[1717619393075,1.08764137,71280.0,71279.0,0.075408]
[1717619393296,0.140305,71273.0,71272.0,0.1622]
[1717619393507,0.37562393,71273.0,71272.0,0.1622]
[1717619394543,0.38962393,71273.0,71272.0,0.1622]
[1717619394964,0.40362393,71273.0,71272.0,0.17962]
[1717619395172,0.40362393,71273.0,71272.0,0.25602]
[1717619396986,0.40362393,71273.0,71272.0,0.2396]
[1717619402061,0.44543875,71273.0,71272.0,0.2396]
[1717619403104,0.40362393,71273.0,71272.0,0.2396]
[1717619403608,0.40362393,71273.0,71272.0,0.001]
[1717619404212,0.74695654,71273.0,71272.0,0.001]
[1717619404416,0.68423493,71273.0,71272.0,0.001]
[1717619404612,1.09978231,71273.0,71272.0,0.001]
[1717619406397,0.99981422,71273.0,71272.0,0.001]
[1717619406852,0.99496905,71273.0,71272.0,0.001]
[1717619408403,0.99981422,71273.0,71272.0,0.001]
[1717619408889,1.28042522,71273.0,71272.0,0.001]
[1717619409109,1.28042522,71273.0,71260.0,0.009146]
[1717619409110,0.42583217,71261.0,71260.0,0.009146]
[1717619409324,0.94888522,71261.0,71260.0,0.009146]
[1717619409546,0.97188522,71261.0,71260.0,0.009146]
[1717619409768,0.96704005,71261.0,71260.0,0.009146]
[1717619410238,0.68638205,71261.0,71260.0,0.009146]
[1717619410920,0.70038205,71261.0,71260.0,0.009146]
[1717619411594,0.70938205,71261.0,71260.0,0.009146]
[1717619412861,0.99004005,71261.0,71260.0,0.009146]
[1717619413935,0.7463551,71261.0,71260.0,0.009146]
[1717619414115,0.8142551,71261.0,71260.0,0.009146]
[1717619414344,0.70938205,71261.0,71260.0,0.009146]
[1717619415415,0.99488522,71261.0,71260.0,0.009146]
[1717619416265,0.99004005,71261.0,71260.0,0.009146]
[1717619416913,0.99488522,71261.0,71260.0,0.009146]
[1717619417145,1.09972924,71261.0,71260.0,0.009146]
[1717619417613,0.92214005,71261.0,71260.0,0.009146]
[1717619417885,0.99004005,71261.0,71260.0,0.009146]
[1717619418092,1.39488522,71261.0,71260.0,0.009146]
[1717619418511,1.83989622,71261.0,71260.0,0.009146]
[1717619418763,0.42588417,71252.0,71251.0,0.011493]
[1717619418987,1.40479521,71252.0,71251.0,0.011493]
[1717619419199,1.75755541,71252.0,71251.0,0.011493]
[1717619419410,1.75272355,71252.0,71251.0,0.011493]
[1717619420704,1.76672355,71252.0,71251.0,0.011493]
[1717619421131,1.75272355,71252.0,71251.0,0.011493]
[1717619421341,1.87148955,71252.0,71251.0,0.011493]
[1717619421548,1.88548955,71252.0,71251.0,0.011493]
[1717619421770,1.78072355,71252.0,71251.0,0.011493]
[1717619421978,1.88549029,71252.0,71251.0,0.011493]
[1717619422187,1.76672355,71252.0,71251.0,0.011493]
[1717619422634,2.01209793,71252.0,71251.0,0.011493]
[1717619423687,1.99809793,71252.0,71251.0,0.011493]
[1717619423895,2.03681572,71252.0,71251.0,0.011493]
[1717619424859,2.02281572,71252.0,71251.0,0.011493]
[1717619425060,2.30350872,71252.0,71251.0,0.011493]
[1717619425267,2.03681572,71252.0,71251.0,0.011493]
[1717619426092,2.31750872,71252.0,71251.0,0.011493]
[1717619426294,0.70758155,71249.0,71248.0,0.009493]
[1717619426505,1.45841333,71249.0,71248.0,0.009493]
[1717619427080,1.35372793,71249.0,71248.0,0.009493]
[1717619427717,1.36772793,71249.0,71248.0,0.009493]
[1717619428130,1.52472793,71249.0,71248.0,0.009493]
[1717619428582,1.59122793,71249.0,71248.0,0.009493]
[1717619428798,0.82690655,71244.0,71243.0,0.009493]
[1717619429008,1.87587793,71244.0,71243.0,0.009493]
[1717619429464,1.94377793,71244.0,71243.0,0.009493]
[1717619429705,2.44920293,71244.0,71243.0,0.009493]
[1717619430346,2.46674226,71244.0,71243.0,0.009493]
[1717619430554,2.46320293,71244.0,71243.0,0.009493]
[1717619432440,2.56780511,71244.0,71243.0,0.009493]
[1717619432613,2.58180511,71244.0,71243.0,0.009493]
[1717619432854,1.50990994,71244.0,71243.0,0.009493]
[1717619433071,1.50990994,71244.0,71243.0,0.257093]
[1717619433072,0.72360838,71244.0,71243.0,0.257093]
[1717619433278,0.48068093,71244.0,71243.0,0.257093]
[1717619433913,0.76140593,71244.0,71243.0,0.257093]
[1717619434297,0.77786125,71244.0,71243.0,0.257093]
[1717619434497,0.80086125,71244.0,71243.0,0.257093]
[1717619436454,0.45223625,71244.0,71243.0,0.257093]
[1717619436749,0.52013625,71244.0,71243.0,0.257093]
[1717619436895,0.80086125,71244.0,71243.0,0.257093]
[1717619437241,0.52013625,71244.0,71243.0,0.257093]
[1717619437662,0.45223625,71244.0,71243.0,0.257093]
[1717619437869,0.52013625,71244.0,71243.0,0.257093]
[1717619442971,0.45223625,71244.0,71243.0,0.257093]
[1717619443388,0.52013625,71244.0,71243.0,0.257093]
[1717619444212,0.56197179,71244.0,71243.0,0.257093]
[1717619444410,0.52013625,71244.0,71243.0,0.257093]
[1717619445035,0.45223625,71244.0,71243.0,0.257093]
[1717619445256,0.56197179,71244.0,71243.0,0.257093]
[1717619446141,0.56197179,71244.0,71243.0,0.009493]
[1717619446349,0.52013625,71244.0,71243.0,0.009493]
[1717619446550,0.56200439,71244.0,71243.0,0.009493]
[1717619447598,0.52013625,71244.0,71243.0,0.088493]
[1717619448202,0.58293846,71244.0,71243.0,0.2724098]
[1717619448419,0.52013625,71244.0,71243.0,0.245293]
[1717619449334,0.58293846,71244.0,71243.0,0.245293]
[1717619450273,0.83101219,71244.0,71243.0,0.245293]
[1717619450866,0.52013625,71244.0,71243.0,0.245293]
[1717619451066,0.58300295,71244.0,71243.0,0.245293]
[1717619451447,0.83101011,71244.0,71243.0,0.245293]
[1717619452287,0.91560639,71244.0,71243.0,0.245293]
[1717619453079,0.84770639,71244.0,71243.0,0.245293]
[1717619453280,0.83187011,71244.0,71243.0,0.245293]
[1717619455211,0.83187014,71244.0,71243.0,0.245293]
[1717619456835,0.83187014,71244.0,71243.0,0.088493]
[1717619458537,1.12292528,71244.0,71243.0,0.088493]
[1717619458968,1.2294971,71244.0,71243.0,0.088493]
[1717619460348,1.35538913,71244.0,71243.0,0.088493]
[1717619461590,1.35538913,71244.0,71243.0,0.009493]
[1717619462200,1.24881731,71244.0,71243.0,0.009493]
[1717619462350,1.22420964,71244.0,71243.0,0.009493]
[1717619464067,0.91332642,71244.0,71243.0,0.009493]
[1717619464269,1.22420901,71244.0,71243.0,0.009493]
[1717619465176,1.65944464,71244.0,71243.0,0.009493]
[1717619468523,1.94016964,71244.0,71243.0,0.009493]
[1717619471245,1.19405142,71244.0,71243.0,0.009493]
[1717619471494,1.9401977,71244.0,71243.0,0.009493]
[1717619474901,1.94019769,71244.0,71243.0,0.009493]
[1717619475510,1.93989138,71244.0,71243.0,0.009493]
[1717619476336,2.08184119,71244.0,71243.0,0.009493]
[1717619476548,1.93989138,71244.0,71243.0,0.009493]
[1717619476775,1.83892266,71244.0,71243.0,0.009493]
[1717619478495,1.94180833,71244.0,71243.0,0.009493]
[1717619480728,1.87390833,71244.0,71243.0,0.009493]
[1717619480933,1.94180833,71244.0,71243.0,0.009493]
[1717619482314,1.83892266,71244.0,71243.0,0.009493]
[1717619483769,1.8388932,71244.0,71243.0,0.009493]
[1717619490635,1.83888208,71244.0,71243.0,0.009493]
[1717619497908,1.54782694,71244.0,71243.0,0.009493]
[1717619498323,1.8388712,71244.0,71243.0,0.009493]
[1717619498547,1.4902462,71244.0,71243.0,0.009493]
[1717619498746,1.4902462,71244.0,71243.0,0.085193]
[1717619498747,1.26710194,71244.0,71243.0,0.085193]
[1717619499170,0.83187362,71244.0,71243.0,0.085193]
[1717619499530,1.11259862,71244.0,71243.0,0.085193]
[1717619501329,0.83187362,71244.0,71243.0,0.085193]
[1717619501503,0.9580823,71244.0,71243.0,0.085193]
[1717619501722,0.83187362,71244.0,71243.0,0.085193]
[1717619502109,0.95807668,71244.0,71243.0,0.085193]
[1717619503719,0.83187362,71244.0,71243.0,0.085193]
[1717619504138,0.83187362,71244.0,71243.0,0.009493]
[1717619505280,0.83671879,71244.0,71243.0,0.009493]
[1717619505699,0.83187362,71244.0,71243.0,0.009493]
[1717619506547,0.76397362,71244.0,71243.0,0.009493]
[1717619506758,0.83187362,71244.0,71243.0,0.009493]
[1717619511527,1.26710194,71244.0,71243.0,0.009493]
[1717619511716,0.83187362,71244.0,71243.0,0.009493]
[1717619512353,1.26710194,71244.0,71243.0,0.009493]
[1717619512594,0.83187362,71244.0,71243.0,0.009493]
[1717619513255,1.26710194,71244.0,71243.0,0.009493]
[1717619513449,0.83187362,71244.0,71243.0,0.009493]
[1717619514048,1.26710194,71244.0,71243.0,0.009493]
[1717619514255,0.83187362,71244.0,71243.0,0.009493]
[1717619514651,0.76397362,71244.0,71243.0,0.009493]
[1717619514804,1.26710194,71244.0,71243.0,0.009493]
[1717619515017,1.11259862,71244.0,71243.0,0.009493]
[1717619515689,1.54782694,71244.0,71243.0,0.009493]
[1717619516041,1.11259862,71244.0,71243.0,0.009493]
[1717619516650,1.54782694,71244.0,71243.0,0.009493]
[1717619517103,1.11259862,71244.0,71243.0,0.009493]
[1717619517673,1.54782694,71244.0,71243.0,0.009493]
[1717619518259,1.11259862,71244.0,71243.0,0.009493]
[1717619518927,1.54782694,71244.0,71243.0,0.009493]
[1717619522333,0.80172125,71244.0,71243.0,0.009493]
[1717619522547,1.26708032,71244.0,71243.0,0.009493]
[1717619522750,1.26708032,71244.0,71243.0,0.092693]
[1717619522916,0.79139939,71244.0,71243.0,0.257593]
[1717619523121,0.79139939,71244.0,71243.0,0.4629166]
[1717619523122,0.33972836,71244.0,71243.0,0.4629166]
[1717619523327,0.33972836,71244.0,71243.0,0.257593]
[1717619523602,0.48009036,71244.0,71243.0,0.52832858]
[1717619524129,0.58525209,71244.0,71243.0,0.52832858]
[1717619524327,0.48009036,71244.0,71243.0,0.52832858]
[1717619524691,0.58525209,71244.0,71243.0,0.52832858]
[1717619524894,0.58525209,71244.0,71243.0,0.51815981]
[1717619525327,0.45209036,71244.0,71243.0,0.51815981]
[1717619525525,0.45209036,71244.0,71243.0,0.52832858]
[1717619525728,0.48009036,71244.0,71243.0,0.52832858]
[1717619526156,0.57122085,71244.0,71243.0,0.52832858]
[1717619526293,0.43085885,71244.0,71243.0,0.52832858]
[1717619526508,0.44481464,71244.0,71243.0,0.52832858]
[1717619526713,0.44481464,71244.0,71243.0,0.51815981]
[1717619527138,0.33969238,71244.0,71243.0,0.51815981]
[1717619527750,0.33969238,71244.0,71243.0,0.52832858]
[1717619527959,0.33969238,71244.0,71243.0,0.51815981]
[1717619529461,0.44480273,71244.0,71243.0,0.51815981]
[1717619532724,2.44480273,71244.0,71243.0,0.51815981]
[1717619532926,2.44480273,71244.0,71243.0,0.52832858]
[1717619533126,2.4237468,71244.0,71243.0,0.62832858]
[1717619533448,2.09190204,71244.0,71243.0,0.62832858]
[1717619533882,2.09189618,71244.0,71243.0,0.62832858]
[1717619534612,2.02886,71244.0,71243.0,0.62832858]
[1717619538248,2.09188498,71244.0,71243.0,0.62832858]
[1717619538657,2.33969125,71244.0,71243.0,0.62832858]
[1717619540094,2.09188414,71244.0,71243.0,0.62832858]
[1717619540316,2.02886,71244.0,71243.0,0.62832858]
[1717619540478,2.0285527,71244.0,71243.0,0.62832858]
[1717619540685,2.09157681,71244.0,71243.0,0.62832858]
[1717619541535,2.0285527,71244.0,71243.0,0.7273542]
[1717619541738,2.0285527,71244.0,71243.0,0.8052542]
[1717619542097,2.0285527,71244.0,71243.0,0.9456182]
[1717619542806,2.0145527,71244.0,71243.0,0.9456182]
[1717619543012,2.0145527,71244.0,71243.0,0.9466182]
[1717619543564,2.0005527,71244.0,71243.0,0.9466182]
[1717619543930,2.0035527,71244.0,71243.0,0.9466182]
[1717619544169,2.0005527,71244.0,71243.0,0.9466182]
[1717619544652,2.0035527,71244.0,71243.0,0.9466182]
[1717619545059,2.0035527,71244.0,71243.0,0.9456182]
[1717619545227,2.0035527,71244.0,71243.0,0.9476182]
[1717619548353,2.0035527,71244.0,71243.0,0.8797182]
[1717619548559,2.0035527,71244.0,71243.0,0.9476182]
[1717619549161,2.0035527,71244.0,71243.0,1.2283472]
[1717619550813,2.0035527,71244.0,71243.0,1.7090762]
[1717619551076,1.70060463,71244.0,71243.0,1.64366422]
[1717619551866,1.69760463,71244.0,71243.0,1.64166422]
[1717619552229,1.69946463,71244.0,71243.0,1.64366422]
[1717619552435,1.70046463,71244.0,71243.0,1.64566422]
[1717619552639,1.69946463,71244.0,71243.0,1.64366422]
[1717619553120,1.70046463,71244.0,71243.0,1.44566422]
[1717619553368,1.70046463,71244.0,71243.0,2.07081215]
[1717619554976,1.70046463,71244.0,71243.0,1.80291215]
[1717619555327,1.70046463,71244.0,71243.0,1.44566422]
[1717619556079,1.69946463,71244.0,71243.0,1.44366422]
[1717619556325,1.69946463,71244.0,71243.0,1.44666422]
[1717619557887,1.69946463,71244.0,71243.0,1.44366422]
[1717619558306,1.69946463,71244.0,71243.0,1.44466422]
[1717619558521,1.69946463,71244.0,71243.0,1.44666422]
[1717619558732,1.69946463,71244.0,71243.0,1.44366422]
[1717619558949,1.69846463,71244.0,71243.0,1.44166422]
[1717619559195,1.69946463,71244.0,71243.0,1.44466422]
[1717619559395,1.70046463,71244.0,71243.0,1.44666422]
[1717619559611,1.69946463,71244.0,71243.0,1.44366422]
[1717619561112,1.70046463,71244.0,71243.0,1.44666422]
[1717619561309,1.69946463,71244.0,71243.0,1.44466422]
[1717619561798,1.69946463,71244.0,71243.0,1.44366422]
[1717619561995,1.70046463,71244.0,71243.0,1.44666422]
[1717619567379,1.49000463,71244.0,71243.0,1.44666422]
[1717619567600,1.49000463,71244.0,71243.0,0.83993522]
[1717619567601,1.34968463,71244.0,71243.0,0.83993522]
[1717619567830,1.34968463,71244.0,71243.0,0.55920622]
[1717619568435,1.34968463,71244.0,71243.0,0.55620622]
[1717619568436,1.34868463,71244.0,71243.0,0.55620622]
[1717619568667,1.34768463,71244.0,71243.0,0.55420622]
[1717619569069,1.34868463,71244.0,71243.0,0.55920622]
[1717619569692,1.34768463,71244.0,71243.0,0.55620622]
[1717619569874,1.34868463,71244.0,71243.0,0.55920622]
[1717619577402,1.34868463,71244.0,71243.0,1.07623522]
[1717619577611,1.34868463,71244.0,71243.0,1.08623522]
[1717619578432,1.34868463,71244.0,71243.0,1.36696422]
[1717619578641,1.34868463,71244.0,71243.0,1.43486422]
[1717619584837,1.34868463,71244.0,71243.0,1.15413522]
[1717619585069,1.34868463,71244.0,71243.0,1.08623522]
[1717619585257,1.34868463,71244.0,71243.0,1.15413522]
[1717619586656,1.34868463,71244.0,71243.0,0.80550622]
[1717619587023,1.34868463,71244.0,71243.0,0.55920622]
[1717619587639,1.58648463,71244.0,71243.0,0.55920622]
[1717619588071,1.58548463,71244.0,71243.0,0.55620622]
[1717619588498,1.58548463,71244.0,71243.0,0.55720622]
[1717619588698,1.58648463,71244.0,71243.0,0.55720622]
[1717619588958,1.58648463,71244.0,71243.0,0.55420622]
[1717619589157,1.58548463,71244.0,71243.0,0.55420622]
[1717619589588,1.58948463,71244.0,71243.0,0.55420622]
[1717619590131,1.58948463,71244.0,71243.0,0.41384222]
[1717619590132,1.59528463,71244.0,71243.0,0.41384222]
[1717619590349,1.66318463,71244.0,71243.0,0.30367345]
[1717619591599,1.72606324,71244.0,71243.0,0.40367345]
[1717619592578,1.66318463,71244.0,71243.0,0.40367345]
[1717619593186,1.70511072,71244.0,71243.0,0.40367345]
[1717619593657,1.66318463,71244.0,71243.0,0.40367345]
[1717619594050,1.66318463,71244.0,71243.0,0.30367345]
[1717619594929,1.66318463,71244.0,71243.0,0.10851862]
[1717619595157,1.94796556,71244.0,71243.0,0.009493]